[Event "Titled Tuesday Blitz May 03 Early 2022"]
[White "Avazkhonov, Alikhon"]
[Black "Ovezdurdyyeva, Jemal"]
[WhiteFideId "14208504"]
[BlackFideId "14001888"]
[WhiteElo "1739"]
[BlackElo "1946"]
[Result "0-1"]
[Round "04"]
[TimeControl "180+1"]
[Date "2022.05.03"]
[WhiteClock "0:00:01"]
[BlackClock "0:00:06"]

1. e4 {[%clk 0:03:00]}  d6 {[%clk 0:02:59]} 2. d4 {[%clk 0:03:00]}  Nf6 {[%clk 0:02:59]} 3. Nc3 {[%clk 0:03:00]}  g6 {[%clk 0:03:00]} 4. f3 {[%clk 0:03:01]}  c6 {[%clk 0:03:00]} 5. Be3 {[%clk 0:03:00]}  b5 {[%clk 0:03:01]} 6. Qd2 {[%clk 0:03:00]}  b4 {[%clk 0:02:57]} 7. Nd1 {[%clk 0:02:58]}  a5 {[%clk 0:02:57]} 8. Nf2 {[%clk 0:02:42]}  h5 {[%clk 0:02:55]} 9. h4 {[%clk 0:02:41]}  Bg7 {[%clk 0:02:51]} 10. Ngh3 {[%clk 0:02:40]}  Ba6 {[%clk 0:02:45]} 11. Bd3 {[%clk 0:02:28]}  Bxd3 {[%clk 0:02:44]} 12. Nxd3 {[%clk 0:02:29]}  Nbd7 {[%clk 0:02:33]} 13. O-O-O {[%clk 0:02:18]}  Nh7 {[%clk 0:02:22]} 14. g4 {[%clk 0:02:10]}  hxg4 {[%clk 0:02:17]} 15. fxg4 {[%clk 0:02:11]}  Qb6 {[%clk 0:01:59]} 16. e5 {[%clk 0:01:29]}  d5 {[%clk 0:01:45]} 17. e6 {[%clk 0:01:23]}  fxe6 {[%clk 0:01:44]} 18. Nhf4 {[%clk 0:01:03]}  Nhf8 {[%clk 0:01:38]} 19. Qf2 {[%clk 0:00:55]}  a4 {[%clk 0:01:31]} 20. Rde1 {[%clk 0:00:53]}  b3 {[%clk 0:01:29]} 21. cxb3 {[%clk 0:00:44]}  axb3 {[%clk 0:01:26]} 22. a3 {[%clk 0:00:44]}  Qb5 {[%clk 0:01:13]} 23. Kb1 {[%clk 0:00:36]}  O-O-O {[%clk 0:00:45]} 24. g5 {[%clk 0:00:29]}  e5 {[%clk 0:00:44]} 25. dxe5 {[%clk 0:00:27]}  Nxe5 {[%clk 0:00:44]} 26. Nxe5 {[%clk 0:00:27]}  Bxe5 {[%clk 0:00:45]} 27. Bd4 {[%clk 0:00:28]}  Bxd4 {[%clk 0:00:20]} 28. Qxd4 {[%clk 0:00:29]}  Rg8 {[%clk 0:00:20]} 29. Rxe7 {[%clk 0:00:25]}  Nd7 {[%clk 0:00:20]} 30. Ne6 {[%clk 0:00:21]}  Rde8 {[%clk 0:00:19]} 31. Qf4 {[%clk 0:00:10]}  Qb8 {[%clk 0:00:13]} 32. Rxe8+ {[%clk 0:00:10]}  Rxe8 {[%clk 0:00:13]} 33. Qf7 {[%clk 0:00:10]}  Rd8 {[%clk 0:00:09]} 34. Nxd8 {[%clk 0:00:10]}  Kxd8 {[%clk 0:00:10]} 35. Re1 {[%clk 0:00:08]}  Qg3 {[%clk 0:00:08]} 36. Qe8+ {[%clk 0:00:05]}  Kc7 {[%clk 0:00:09]} 37. Qe2 {[%clk 0:00:02]}  Qxh4 {[%clk 0:00:09]} 38. Qe3 {[%clk 0:00:02]}  Qc4 {[%clk 0:00:08]} 39. Qg3+ {[%clk 0:00:02]}  Kb7 {[%clk 0:00:06]} 40. Rc1 {[%clk 0:00:03]}  Qe4+ {[%clk 0:00:06]} 41. Ka1 {[%clk 0:00:03]}  Nb6 {[%clk 0:00:06]} 42. Qxb3 {[%clk 0:00:03]}  Kc7 {[%clk 0:00:06]} 43. Qg3+ {[%clk 0:00:03]}  Kb7 {[%clk 0:00:06]} 44. Qh2 {[%clk 0:00:03]}  Nc4 {[%clk 0:00:06]} 45. Qc2 {[%clk 0:00:01]}  Qf4 {[%clk 0:00:06]} 46. Qb3+ {[%clk 0:00:01]}  Kc7 {[%clk 0:00:06]} 47. Rg1 {[%clk 0:00:01]}  Qd4 {[%clk 0:00:05]} 48. Rf1 {[%clk 0:00:01]}  Na5 {[%clk 0:00:06]} 0-1


[Site "https://www.chess.com"]

[Event "Titled Tuesday Blitz May 03 Early 2022"]
[White "Bartel, Michal"]
[Black "Mikhnenko, Alexander"]
[WhiteFideId "1119257"]
[BlackFideId "34143014"]
[WhiteElo "2211"]
[BlackElo "2117"]
[Result "1-0"]
[Round "04"]
[TimeControl "180+1"]
[Date "2022.05.03"]
[WhiteClock "0:01:37"]
[BlackClock "0:00:15"]

1. e4 {[%clk 0:03:00]}  c5 {[%clk 0:02:58]} 2. Ne2 {[%clk 0:03:00]}  e6 {[%clk 0:02:58]} 3. g3 {[%clk 0:03:00]}  d5 {[%clk 0:02:58]} 4. Bg2 {[%clk 0:03:01]}  Nf6 {[%clk 0:02:58]} 5. exd5 {[%clk 0:03:01]}  exd5 {[%clk 0:02:59]} 6. d4 {[%clk 0:03:01]}  Nc6 {[%clk 0:02:59]} 7. O-O {[%clk 0:03:01]}  Be7 {[%clk 0:02:58]} 8. Nbc3 {[%clk 0:03:01]}  Be6 {[%clk 0:02:57]} 9. Re1 {[%clk 0:02:52]}  O-O {[%clk 0:02:56]} 10. dxc5 {[%clk 0:02:52]}  Bxc5 {[%clk 0:02:55]} 11. Nf4 {[%clk 0:02:49]}  Ng4 {[%clk 0:02:42]} 12. Nd3 {[%clk 0:02:40]}  Bb6 {[%clk 0:02:35]} 13. Na4 {[%clk 0:02:29]}  Ba5 {[%clk 0:02:30]} 14. Rxe6 {[%clk 0:02:29]}  fxe6 {[%clk 0:02:27]} 15. Qxg4 {[%clk 0:02:28]}  Qf6 {[%clk 0:02:20]} 16. Nac5 {[%clk 0:02:22]}  Rae8 {[%clk 0:01:23]} 17. Nd7 {[%clk 0:02:20]}  Qf5 {[%clk 0:01:22]} 18. Qg5 {[%clk 0:02:19]}  Qxg5 {[%clk 0:01:16]} 19. Bxg5 {[%clk 0:02:17]}  Rf5 {[%clk 0:01:03]} 20. Be3 {[%clk 0:02:12]}  d4 {[%clk 0:00:55]} 21. Bf4 {[%clk 0:02:05]}  e5 {[%clk 0:00:38]} 22. Bxc6 {[%clk 0:02:04]}  bxc6 {[%clk 0:00:22]} 23. Bxe5 {[%clk 0:01:47]}  Re7 {[%clk 0:00:18]} 24. Nb8 {[%clk 0:01:40]}  Rfxe5 {[%clk 0:00:15]} 25. Nxe5 {[%clk 0:01:39]}  Rxe5 {[%clk 0:00:16]} 26. Nxc6 {[%clk 0:01:40]}  Rc5 {[%clk 0:00:16]} 27. Nxa5 {[%clk 0:01:39]}  Rxa5 {[%clk 0:00:16]} 28. Kf1 {[%clk 0:01:38]}  Rc5 {[%clk 0:00:16]} 29. Rc1 {[%clk 0:01:38]}  d3 {[%clk 0:00:16]} 30. c4 {[%clk 0:01:36]}  d2 {[%clk 0:00:14]} 31. Rd1 {[%clk 0:01:37]}  Rxc4 {[%clk 0:00:15]} 32. Rxd2 {[%clk 0:01:37]}  Rc1+ {[%clk 0:00:15]} 33. Ke2 {[%clk 0:01:37]} 1-0


[Site "https://www.chess.com"]

[Event "Titled Tuesday Blitz May 03 Early 2022"]
[White "Begunov, Konstantin"]
[Black "Molina, Roberto Junio Brito"]
[WhiteFideId "4118510"]
[BlackFideId "2109450"]
[WhiteElo "2262"]
[BlackElo "2432"]
[Result "0-1"]
[Round "04"]
[TimeControl "180+1"]
[Date "2022.05.03"]
[WhiteClock "0:00:01"]
[BlackClock "0:00:11"]

1. d4 {[%clk 0:02:54]}  c6 {[%clk 0:03:00]} 2. c4 {[%clk 0:02:53]}  d5 {[%clk 0:03:01]} 3. Nc3 {[%clk 0:02:53]}  Nf6 {[%clk 0:03:01]} 4. cxd5 {[%clk 0:02:51]}  cxd5 {[%clk 0:03:01]} 5. Bf4 {[%clk 0:02:51]}  Qb6 {[%clk 0:03:01]} 6. e3 {[%clk 0:02:49]}  Qxb2 {[%clk 0:03:01]} 7. Nge2 {[%clk 0:02:47]}  a6 {[%clk 0:02:59]} 8. Na4 {[%clk 0:02:31]}  Qb4+ {[%clk 0:02:56]} 9. Nec3 {[%clk 0:02:16]}  Nbd7 {[%clk 0:02:10]} 10. Rb1 {[%clk 0:02:05]}  Qa5 {[%clk 0:02:09]} 11. Qb3 {[%clk 0:01:25]}  b5 {[%clk 0:02:03]} 12. Nb2 {[%clk 0:00:58]}  e6 {[%clk 0:02:00]} 13. Bd3 {[%clk 0:00:55]}  Ba3 {[%clk 0:01:41]} 14. O-O {[%clk 0:00:46]}  O-O {[%clk 0:01:40]} 15. Rbc1 {[%clk 0:00:35]}  Bb7 {[%clk 0:01:38]} 16. Nb1 {[%clk 0:00:35]}  Bxb2 {[%clk 0:01:32]} 17. Bc7 {[%clk 0:00:30]}  Nb6 {[%clk 0:01:12]} 18. Qxb2 {[%clk 0:00:24]}  Rfc8 {[%clk 0:01:09]} 19. Nd2 {[%clk 0:00:22]}  Na4 {[%clk 0:01:04]} 20. Bxa5 {[%clk 0:00:16]}  Nxb2 {[%clk 0:01:03]} 21. Bb1 {[%clk 0:00:16]}  Nc4 {[%clk 0:01:02]} 22. Bb4 {[%clk 0:00:14]}  a5 {[%clk 0:00:57]} 23. Bc3 {[%clk 0:00:14]}  b4 {[%clk 0:00:56]} 24. Nxc4 {[%clk 0:00:12]}  dxc4 {[%clk 0:00:55]} 25. Be1 {[%clk 0:00:12]}  Be4 {[%clk 0:00:52]} 26. f3 {[%clk 0:00:10]}  Bxb1 {[%clk 0:00:52]} 27. Rxb1 {[%clk 0:00:11]}  Nd5 {[%clk 0:00:47]} 28. Kf2 {[%clk 0:00:10]}  c3 {[%clk 0:00:44]} 29. e4 {[%clk 0:00:08]}  Nb6 {[%clk 0:00:40]} 30. Ke3 {[%clk 0:00:07]}  Nc4+ {[%clk 0:00:37]} 31. Kd3 {[%clk 0:00:06]}  e5 {[%clk 0:00:34]} 32. d5 {[%clk 0:00:04]}  f6 {[%clk 0:00:20]} 33. Rc1 {[%clk 0:00:04]}  Rab8 {[%clk 0:00:18]} 34. Bf2 {[%clk 0:00:04]}  a4 {[%clk 0:00:17]} 35. Kc2 {[%clk 0:00:03]}  b3+ {[%clk 0:00:11]} 36. axb3 {[%clk 0:00:02]}  axb3+ {[%clk 0:00:12]} 37. Kxc3 {[%clk 0:00:03]}  Ne3+ {[%clk 0:00:11]} 38. Kd3 {[%clk 0:00:01]}  Nxf1 {[%clk 0:00:11]} 39. Rxf1 {[%clk 0:00:01]}  b2 {[%clk 0:00:11]} 40. Rb1 {[%clk 0:00:01]}  Rc1 {[%clk 0:00:11]} 0-1


[Site "https://www.chess.com"]

[Event "Titled Tuesday Blitz May 03 Early 2022"]
[White "Bifulco, Michel"]
[Black "Lauridsen, Jesper Morch"]
[WhiteFideId "828580"]
[BlackFideId "1401890"]
[WhiteElo "2165"]
[BlackElo "2224"]
[Result "0-1"]
[Round "04"]
[TimeControl "180+1"]
[Date "2022.05.03"]
[WhiteClock "0:00:55"]
[BlackClock "0:00:13"]

1. d4 {[%clk 0:03:00]}  Nf6 {[%clk 0:02:58]} 2. Nc3 {[%clk 0:03:01]}  d5 {[%clk 0:02:57]} 3. Bf4 {[%clk 0:03:01]}  c6 {[%clk 0:02:55]} 4. e3 {[%clk 0:03:01]}  g6 {[%clk 0:02:54]} 5. h4 {[%clk 0:03:00]}  Bg7 {[%clk 0:02:52]} 6. Nf3 {[%clk 0:03:01]}  O-O {[%clk 0:02:52]} 7. Qd2 {[%clk 0:03:01]}  Bg4 {[%clk 0:02:50]} 8. Ne5 {[%clk 0:03:01]}  Bf5 {[%clk 0:02:49]} 9. Be2 {[%clk 0:03:01]}  Nbd7 {[%clk 0:02:48]} 10. g4 {[%clk 0:03:01]}  Nxe5 {[%clk 0:02:43]} 11. gxf5 {[%clk 0:02:57]}  Nc4 {[%clk 0:02:43]} 12. Bxc4 {[%clk 0:02:56]}  dxc4 {[%clk 0:02:43]} 13. fxg6 {[%clk 0:02:56]}  fxg6 {[%clk 0:02:40]} 14. O-O-O {[%clk 0:02:56]}  b5 {[%clk 0:02:38]} 15. Rdg1 {[%clk 0:02:52]}  Kh8 {[%clk 0:02:34]} 16. h5 {[%clk 0:02:51]}  Nxh5 {[%clk 0:02:33]} 17. Rxh5 {[%clk 0:02:51]}  gxh5 {[%clk 0:02:33]} 18. Ne4 {[%clk 0:02:48]}  Qd5 {[%clk 0:02:28]} 19. Ng5 {[%clk 0:02:41]}  h6 {[%clk 0:02:09]} 20. Nh3 {[%clk 0:02:18]}  c3 {[%clk 0:01:55]} 21. bxc3 {[%clk 0:02:15]}  Qxa2 {[%clk 0:01:54]} 22. Qd3 {[%clk 0:02:15]}  Qa3+ {[%clk 0:01:38]} 23. Kd2 {[%clk 0:02:14]}  b4 {[%clk 0:01:38]} 24. Qg6 {[%clk 0:02:08]}  Qxc3+ {[%clk 0:01:37]} 25. Kd1 {[%clk 0:02:06]}  Qa1+ {[%clk 0:00:56]} 26. Ke2 {[%clk 0:02:06]}  Qa6+ {[%clk 0:00:35]} 27. Kd2 {[%clk 0:02:02]}  Rg8 {[%clk 0:00:19]} 28. Bxh6 {[%clk 0:01:59]}  Bxd4 {[%clk 0:00:16]} 29. Bg7+ {[%clk 0:01:04]}  Rxg7 {[%clk 0:00:14]} 30. Qxh5+ {[%clk 0:01:04]}  Kg8 {[%clk 0:00:14]} 31. Rxg7+ {[%clk 0:01:03]}  Bxg7 {[%clk 0:00:14]} 32. Ng5 {[%clk 0:01:03]}  Rd8+ {[%clk 0:00:14]} 33. Ke1 {[%clk 0:00:55]}  Bc3# {[%clk 0:00:13]} 0-1


[Site "https://www.chess.com"]

[Event "Titled Tuesday Blitz May 03 Early 2022"]
[White "Bluebaum, Matthias"]
[Black "Xu, Yi"]
[WhiteFideId "24651516"]
[BlackFideId "8605564"]
[WhiteElo "2550"]
[BlackElo "2471"]
[Result "1-0"]
[Round "04"]
[TimeControl "180+1"]
[Date "2022.05.03"]
[WhiteClock "0:01:30"]
[BlackClock "0:00:33"]

1. d4 {[%clk 0:03:00]}  Nf6 {[%clk 0:03:00]} 2. c4 {[%clk 0:03:01]}  e6 {[%clk 0:03:00]} 3. Nc3 {[%clk 0:03:02]}  Bb4 {[%clk 0:03:00]} 4. e3 {[%clk 0:03:02]}  O-O {[%clk 0:02:59]} 5. Bd2 {[%clk 0:03:03]}  d5 {[%clk 0:02:49]} 6. Nf3 {[%clk 0:03:01]}  b6 {[%clk 0:02:49]} 7. cxd5 {[%clk 0:03:01]}  exd5 {[%clk 0:02:49]} 8. Rc1 {[%clk 0:03:00]}  Bb7 {[%clk 0:02:43]} 9. Bd3 {[%clk 0:03:00]}  Re8 {[%clk 0:02:42]} 10. O-O {[%clk 0:02:58]}  Bf8 {[%clk 0:02:40]} 11. Ne5 {[%clk 0:02:57]}  c5 {[%clk 0:02:38]} 12. Bb5 {[%clk 0:02:58]}  Re7 {[%clk 0:02:22]} 13. f4 {[%clk 0:02:56]}  a6 {[%clk 0:02:21]} 14. Ba4 {[%clk 0:02:56]}  b5 {[%clk 0:02:14]} 15. Bc2 {[%clk 0:02:56]}  cxd4 {[%clk 0:02:03]} 16. exd4 {[%clk 0:02:53]}  Nc6 {[%clk 0:02:02]} 17. Be1 {[%clk 0:02:53]}  Qb6 {[%clk 0:01:27]} 18. Kh1 {[%clk 0:02:52]}  Ree8 {[%clk 0:01:07]} 19. Bf2 {[%clk 0:02:47]}  Nb4 {[%clk 0:01:05]} 20. Bb1 {[%clk 0:02:46]}  Ne4 {[%clk 0:01:06]} 21. a3 {[%clk 0:02:09]}  Nc6 {[%clk 0:00:47]} 22. Nxe4 {[%clk 0:01:56]}  dxe4 {[%clk 0:00:39]} 23. d5 {[%clk 0:01:44]}  e3 {[%clk 0:00:38]} 24. dxc6 {[%clk 0:01:37]}  exf2 {[%clk 0:00:37]} 25. cxb7 {[%clk 0:01:38]}  Rad8 {[%clk 0:00:35]} 26. Qf3 {[%clk 0:01:33]}  f6 {[%clk 0:00:33]} 27. Ba2+ {[%clk 0:01:30]} 1-0


[Site "https://www.chess.com"]

[Event "Titled Tuesday Blitz May 03 Early 2022"]
[White "Bok, Benjamin"]
[Black "Vysochin, Spartak"]
[WhiteFideId "1017063"]
[BlackFideId "14103516"]
[WhiteElo "2658"]
[BlackElo "2385"]
[Result "1-0"]
[Round "04"]
[TimeControl "180+1"]
[Date "2022.05.03"]
[WhiteClock "0:00:43"]
[BlackClock "0:00:11"]

1. d4 {[%clk 0:03:00]}  d5 {[%clk 0:02:55]} 2. c4 {[%clk 0:03:00]}  c6 {[%clk 0:02:55]} 3. Nf3 {[%clk 0:03:00]}  Nf6 {[%clk 0:02:54]} 4. cxd5 {[%clk 0:03:01]}  cxd5 {[%clk 0:02:53]} 5. Nc3 {[%clk 0:03:01]}  Nc6 {[%clk 0:02:53]} 6. Bf4 {[%clk 0:03:01]}  a6 {[%clk 0:02:53]} 7. Rc1 {[%clk 0:03:00]}  Bf5 {[%clk 0:02:49]} 8. e3 {[%clk 0:03:00]}  Rc8 {[%clk 0:02:49]} 9. Be2 {[%clk 0:03:00]}  e6 {[%clk 0:02:48]} 10. O-O {[%clk 0:03:00]}  Nd7 {[%clk 0:02:46]} 11. Na4 {[%clk 0:02:48]}  Be7 {[%clk 0:02:46]} 12. h3 {[%clk 0:02:43]}  O-O {[%clk 0:02:45]} 13. a3 {[%clk 0:02:42]}  b5 {[%clk 0:02:07]} 14. Nc5 {[%clk 0:02:41]}  Nxc5 {[%clk 0:02:06]} 15. dxc5 {[%clk 0:02:41]}  Bf6 {[%clk 0:02:03]} 16. Nd4 {[%clk 0:02:15]}  e5 {[%clk 0:01:51]} 17. Nxc6 {[%clk 0:01:52]}  Rxc6 {[%clk 0:01:47]} 18. Bg3 {[%clk 0:01:52]}  e4 {[%clk 0:01:30]} 19. b4 {[%clk 0:01:42]}  Re8 {[%clk 0:01:10]} 20. Bd6 {[%clk 0:01:26]}  Rxd6 {[%clk 0:01:10]} 21. cxd6 {[%clk 0:01:27]}  Qxd6 {[%clk 0:01:10]} 22. Rc5 {[%clk 0:01:25]}  Be6 {[%clk 0:00:57]} 23. Bg4 {[%clk 0:01:24]}  Qe5 {[%clk 0:00:49]} 24. Bxe6 {[%clk 0:01:20]}  fxe6 {[%clk 0:00:49]} 25. Rc6 {[%clk 0:01:20]}  Ra8 {[%clk 0:00:34]} 26. Qg4 {[%clk 0:01:06]}  Re8 {[%clk 0:00:19]} 27. Rfc1 {[%clk 0:01:04]}  Qf5 {[%clk 0:00:16]} 28. Rc8 {[%clk 0:00:58]}  Rxc8 {[%clk 0:00:15]} 29. Rxc8+ {[%clk 0:00:59]}  Kf7 {[%clk 0:00:16]} 30. Qxf5 {[%clk 0:00:51]}  exf5 {[%clk 0:00:16]} 31. Ra8 {[%clk 0:00:52]}  d4 {[%clk 0:00:14]} 32. exd4 {[%clk 0:00:53]}  Bxd4 {[%clk 0:00:14]} 33. Rxa6 {[%clk 0:00:53]}  Bb2 {[%clk 0:00:13]} 34. Kf1 {[%clk 0:00:52]}  f4 {[%clk 0:00:12]} 35. Ke2 {[%clk 0:00:49]}  g5 {[%clk 0:00:12]} 36. Ra5 {[%clk 0:00:48]}  Kf6 {[%clk 0:00:11]} 37. Rxb5 {[%clk 0:00:47]}  Bxa3 {[%clk 0:00:11]} 38. Rb8 {[%clk 0:00:46]}  h5 {[%clk 0:00:11]} 39. b5 {[%clk 0:00:46]}  g4 {[%clk 0:00:11]} 40. hxg4 {[%clk 0:00:45]}  hxg4 {[%clk 0:00:11]} 41. b6 {[%clk 0:00:45]}  f3+ {[%clk 0:00:12]} 42. gxf3 {[%clk 0:00:45]}  gxf3+ {[%clk 0:00:11]} 43. Kf1 {[%clk 0:00:43]} 1-0


[Site "https://www.chess.com"]

[Event "Titled Tuesday Blitz May 03 Early 2022"]
[White "Bongo Akanga Ndjila, Barthelemy"]
[Black "Manon, Reja Neer"]
[WhiteFideId "10609431"]
[BlackFideId "10224009"]
[WhiteElo "1768"]
[BlackElo "1911"]
[Result "0-1"]
[Round "04"]
[TimeControl "180+1"]
[Date "2022.05.03"]
[WhiteClock "0:00:57"]
[BlackClock "0:01:34"]

1. d4 {[%clk 0:03:00]}  Nf6 {[%clk 0:02:58]} 2. c4 {[%clk 0:03:00]}  g6 {[%clk 0:02:58]} 3. Nc3 {[%clk 0:02:58]}  Bg7 {[%clk 0:02:59]} 4. e4 {[%clk 0:02:58]}  d6 {[%clk 0:02:59]} 5. Be2 {[%clk 0:02:58]}  O-O {[%clk 0:03:00]} 6. Nf3 {[%clk 0:02:59]}  e5 {[%clk 0:03:00]} 7. O-O {[%clk 0:02:58]}  Nc6 {[%clk 0:03:00]} 8. d5 {[%clk 0:02:59]}  Ne7 {[%clk 0:03:00]} 9. Ne1 {[%clk 0:02:58]}  a5 {[%clk 0:03:00]} 10. Be3 {[%clk 0:02:57]}  Nd7 {[%clk 0:03:01]} 11. f3 {[%clk 0:02:57]}  f5 {[%clk 0:03:01]} 12. a4 {[%clk 0:02:55]}  b6 {[%clk 0:02:58]} 13. Rc1 {[%clk 0:02:54]}  f4 {[%clk 0:02:57]} 14. Bf2 {[%clk 0:02:54]}  g5 {[%clk 0:02:58]} 15. g4 {[%clk 0:02:52]}  fxg3 {[%clk 0:02:55]} 16. hxg3 {[%clk 0:02:51]}  Nf6 {[%clk 0:02:53]} 17. Kg2 {[%clk 0:02:51]}  Ng6 {[%clk 0:02:50]} 18. Rh1 {[%clk 0:02:51]}  h5 {[%clk 0:02:41]} 19. Be3 {[%clk 0:02:50]}  g4 {[%clk 0:02:37]} 20. Bg5 {[%clk 0:02:48]}  gxf3+ {[%clk 0:02:32]} 21. Bxf3 {[%clk 0:02:48]}  Bg4 {[%clk 0:02:22]} 22. Qd2 {[%clk 0:02:47]}  Qd7 {[%clk 0:02:16]} 23. Bh6 {[%clk 0:02:36]}  Rf7 {[%clk 0:02:04]} 24. Bxg7 {[%clk 0:02:36]}  Kxg7 {[%clk 0:02:04]} 25. Qg5 {[%clk 0:02:30]}  Nh7 {[%clk 0:01:57]} 26. Qe3 {[%clk 0:02:29]}  Raf8 {[%clk 0:01:54]} 27. Bxg4 {[%clk 0:02:08]}  Qxg4 {[%clk 0:01:53]} 28. Rc2 {[%clk 0:01:58]}  Nf4+ {[%clk 0:01:41]} 29. Kg1 {[%clk 0:01:53]}  Nh3+ {[%clk 0:01:34]} 30. Rxh3 {[%clk 0:01:42]}  Qxh3 {[%clk 0:01:34]} 31. Ng2 {[%clk 0:00:57]} 0-1


[Site "https://www.chess.com"]

[Event "Titled Tuesday Blitz May 03 Early 2022"]
[White "Borgaonkar Akshay"]
[Black "Balabayeva, Xeniya"]
[WhiteFideId "25639110"]
[BlackFideId "13719688"]
[WhiteElo "1624"]
[BlackElo "1941"]
[Result "1-0"]
[Round "04"]
[TimeControl "180+1"]
[Date "2022.05.03"]
[WhiteClock "0:00:22"]
[BlackClock "0:00:12"]

1. e4 {[%clk 0:03:00]}  c6 {[%clk 0:02:59]} 2. d4 {[%clk 0:03:00]}  d5 {[%clk 0:03:00]} 3. e5 {[%clk 0:02:56]}  Bf5 {[%clk 0:02:58]} 4. Bd3 {[%clk 0:02:56]}  Bxd3 {[%clk 0:02:57]} 5. Qxd3 {[%clk 0:02:57]}  Qa5+ {[%clk 0:02:54]} 6. c3 {[%clk 0:02:52]}  e6 {[%clk 0:02:51]} 7. f4 {[%clk 0:02:50]}  g6 {[%clk 0:02:43]} 8. Ne2 {[%clk 0:02:50]}  Nd7 {[%clk 0:02:39]} 9. O-O {[%clk 0:02:49]}  c5 {[%clk 0:02:35]} 10. Qf3 {[%clk 0:02:45]}  Rc8 {[%clk 0:02:33]} 11. Be3 {[%clk 0:02:44]}  Qb6 {[%clk 0:02:29]} 12. Nd2 {[%clk 0:02:42]}  c4 {[%clk 0:02:25]} 13. g4 {[%clk 0:02:36]}  h5 {[%clk 0:02:23]} 14. h3 {[%clk 0:02:35]}  hxg4 {[%clk 0:02:20]} 15. hxg4 {[%clk 0:02:36]}  Ne7 {[%clk 0:02:11]} 16. Kg2 {[%clk 0:02:35]}  Rc7 {[%clk 0:02:06]} 17. Rab1 {[%clk 0:02:26]}  a5 {[%clk 0:01:54]} 18. Ng3 {[%clk 0:02:25]}  Rg8 {[%clk 0:01:42]} 19. Rh1 {[%clk 0:02:23]}  a4 {[%clk 0:01:38]} 20. a3 {[%clk 0:02:21]}  f6 {[%clk 0:01:19]} 21. Rh7 {[%clk 0:02:16]}  Bg7 {[%clk 0:01:14]} 22. Qd1 {[%clk 0:02:06]}  Qc6 {[%clk 0:01:09]} 23. Qc2 {[%clk 0:01:57]}  Qb6 {[%clk 0:01:01]} 24. Nf3 {[%clk 0:01:55]}  Qb5 {[%clk 0:00:36]} 25. Nh4 {[%clk 0:01:53]}  g5 {[%clk 0:00:27]} 26. fxg5 {[%clk 0:01:47]}  fxe5 {[%clk 0:00:25]} 27. dxe5 {[%clk 0:01:37]}  Bxe5 {[%clk 0:00:20]} 28. Rf1 {[%clk 0:01:36]}  Nf8 {[%clk 0:00:18]} 29. Rhf7 {[%clk 0:01:33]}  d4 {[%clk 0:00:18]} 30. cxd4 {[%clk 0:01:31]}  Qd5+ {[%clk 0:00:18]} 31. Kh3 {[%clk 0:01:21]}  Bxg3 {[%clk 0:00:17]} 32. Kxg3 {[%clk 0:01:14]}  e5 {[%clk 0:00:17]} 33. dxe5 {[%clk 0:01:02]}  Ne6 {[%clk 0:00:17]} 34. Nf5 {[%clk 0:00:51]}  Qxe5+ {[%clk 0:00:16]} 35. Kg2 {[%clk 0:00:42]}  Nxf5 {[%clk 0:00:16]} 36. R1xf5 {[%clk 0:00:40]}  Qxe3 {[%clk 0:00:16]} 37. Rxc7 {[%clk 0:00:39]}  Nxc7 {[%clk 0:00:15]} 38. Qxc4 {[%clk 0:00:39]}  Kd7 {[%clk 0:00:14]} 39. Rf7+ {[%clk 0:00:38]}  Ke8 {[%clk 0:00:14]} 40. Rf2 {[%clk 0:00:23]}  Rxg5 {[%clk 0:00:12]} 41. Re2 {[%clk 0:00:22]} 1-0


[Site "https://www.chess.com"]

[Event "Titled Tuesday Blitz May 03 Early 2022"]
[White "Buscar, Michael"]
[Black "Kozin, Yuri"]
[WhiteFideId "2603616"]
[BlackFideId "4129920"]
[WhiteElo "2010"]
[BlackElo "2587"]
[Result "0-1"]
[Round "04"]
[TimeControl "180+1"]
[Date "2022.05.03"]
[WhiteClock "0:00:01"]
[BlackClock "0:00:15"]

1. d4 {[%clk 0:03:00]}  d5 {[%clk 0:02:59]} 2. c4 {[%clk 0:03:00]}  c6 {[%clk 0:03:00]} 3. Nf3 {[%clk 0:02:59]}  Nf6 {[%clk 0:02:58]} 4. g3 {[%clk 0:03:00]}  g6 {[%clk 0:02:56]} 5. Bg2 {[%clk 0:03:00]}  Bg7 {[%clk 0:02:56]} 6. O-O {[%clk 0:03:00]}  dxc4 {[%clk 0:02:57]} 7. a4 {[%clk 0:02:57]}  O-O {[%clk 0:02:56]} 8. Na3 {[%clk 0:02:55]}  Na6 {[%clk 0:02:52]} 9. Nxc4 {[%clk 0:02:54]}  Be6 {[%clk 0:02:51]} 10. Nce5 {[%clk 0:02:54]}  Nb4 {[%clk 0:02:40]} 11. Ra3 {[%clk 0:02:47]}  a5 {[%clk 0:02:34]} 12. Nd3 {[%clk 0:02:37]}  Bd5 {[%clk 0:02:31]} 13. Nxb4 {[%clk 0:02:29]}  axb4 {[%clk 0:02:32]} 14. Rd3 {[%clk 0:02:29]}  b3 {[%clk 0:02:29]} 15. Ne5 {[%clk 0:02:26]}  Rxa4 {[%clk 0:02:25]} 16. Bxd5 {[%clk 0:02:23]}  Qxd5 {[%clk 0:02:24]} 17. Qxb3 {[%clk 0:02:22]}  Rxd4 {[%clk 0:02:13]} 18. Rxd4 {[%clk 0:02:03]}  Qxd4 {[%clk 0:02:09]} 19. Nd3 {[%clk 0:02:01]}  Qa7 {[%clk 0:01:48]} 20. Be3 {[%clk 0:01:58]}  Qa8 {[%clk 0:01:48]} 21. Bc5 {[%clk 0:01:50]}  Re8 {[%clk 0:01:41]} 22. Rd1 {[%clk 0:01:33]}  Ne4 {[%clk 0:01:28]} 23. Bb6 {[%clk 0:01:20]}  Nd6 {[%clk 0:01:21]} 24. Nc5 {[%clk 0:01:10]}  Nb5 {[%clk 0:01:04]} 25. e3 {[%clk 0:00:58]}  Qc8 {[%clk 0:00:50]} 26. Rd7 {[%clk 0:00:47]}  Nd6 {[%clk 0:00:47]} 27. h4 {[%clk 0:00:35]}  Bf6 {[%clk 0:00:47]} 28. h5 {[%clk 0:00:34]}  Kg7 {[%clk 0:00:47]} 29. Kg2 {[%clk 0:00:20]}  gxh5 {[%clk 0:00:41]} 30. Qc2 {[%clk 0:00:13]}  h4 {[%clk 0:00:38]} 31. gxh4 {[%clk 0:00:09]}  Bxh4 {[%clk 0:00:34]} 32. Qe2 {[%clk 0:00:10]}  Bf6 {[%clk 0:00:31]} 33. Qg4+ {[%clk 0:00:09]}  Kh8 {[%clk 0:00:31]} 34. Kf1 {[%clk 0:00:10]}  Rg8 {[%clk 0:00:30]} 35. Qh3 {[%clk 0:00:10]}  Bxb2 {[%clk 0:00:23]} 36. Nd3 {[%clk 0:00:06]}  Bf6 {[%clk 0:00:20]} 37. Nf4 {[%clk 0:00:06]}  Qa8 {[%clk 0:00:19]} 38. Qh4 {[%clk 0:00:01]}  Qa1+ {[%clk 0:00:16]} 39. Ke2 {[%clk 0:00:01]}  Bxh4 {[%clk 0:00:16]} 40. Kf3 {[%clk 0:00:01]}  Qd1+ {[%clk 0:00:15]} 0-1


[Site "https://www.chess.com"]